bitfinex/quotes_SOLUSD_20251224
["timestamp","ask_amount","ask_price","bid_price","bid_amount"]
[1766555415293,0.1,121.63,121.6,2.95525755]
[1766555416214,0.79,121.63,121.6,2.95525755]
[1766555417612,0.79,121.63,121.6,2.65525755]
[1766555417988,0.79,121.63,121.59,11.17917158]
[1766555418388,0.79,121.63,121.6,2.65525755]
[1766555418598,0.79,121.63,121.59,11.17917158]
[1766555418998,0.79,121.63,121.6,10.87890583]
[1766555419610,0.79,121.63,121.6,8.22364828]
[1766555419799,0.79,121.63,121.6,10.87890583]
[1766555420416,0.1,121.63,121.61,2.65525755]
[1766555420623,0.1,121.65,121.62,2.65525755]
[1766555420792,0.79,121.65,121.62,2.65525755]
[1766555421539,0.79,121.65,121.59,23.21491965]
[1766555421540,0.69,121.64,121.59,8.22420744]
[1766555421819,0.69,121.63,121.6,8.22361652]
[1766555422025,0.69,121.63,121.6,10.87887407]
[1766555422721,0.69,121.63,121.6,2.65525755]
[1766555423026,0.69,121.63,121.6,11.17887434]
[1766555423211,0.69,121.63,121.6,2.65525755]
[1766555423419,0.69,121.62,121.58,13.09293051]
[1766555423722,0.69,121.62,121.58,10.43767296]
[1766555423891,0.69,121.62,121.58,13.09293051]
[1766555424098,0.69,121.62,121.58,10.43767296]
[1766555424298,0.69,121.62,121.58,13.09293051]
[1766555424596,0.69,121.62,121.58,2.95525755]
[1766555425004,0.69,121.61,121.57,2.65525755]
[1766555425204,0.69,121.6,121.56,11.18148091]
[1766555426003,0.69,121.6,121.56,10.88148091]
[1766555426208,0.69,121.6,121.57,11.1809011]
[1766555426802,0.69,121.62,121.59,2.65525755]
[1766555427825,0.69,121.62,121.58,2.95525755]
[1766555428323,2.65525755,121.62,121.57,10.8809011]
[1766555428510,0.69,121.61,121.57,10.8809011]
[1766555428821,0.69,121.61,121.57,11.1809011]
[1766555429018,0.69,121.61,121.58,2.65525755]
[1766555429822,0.69,121.61,121.56,10.88157931]
[1766555429823,2.65525755,121.61,121.56,10.88157931]
[1766555430029,0.69,121.6,121.56,10.88157931]
[1766555430323,0.69,121.6,121.56,11.18157931]
[1766555430922,0.69,121.6,121.56,2.65525755]
[1766555431102,0.69,121.59,121.55,33.68448677]
[1766555431302,0.69,121.59,121.55,33.98448677]
[1766555431503,0.69,121.59,121.55,36.63974432]
[1766555432128,0.69,121.59,121.56,2.65525755]
[1766555432726,0.69,121.59,121.56,2.73025083]
[1766555433523,0.69,121.59,121.56,10.95640067]
[1766555433921,0.69,121.58,121.54,10.95745122]
[1766555434100,0.69,121.58,121.55,8.22698773]
[1766555434506,0.69,121.58,121.55,10.95723856]
[1766555436505,0.69,121.58,121.55,2.73025083]
[1766555438328,3.39025083,121.58,121.54,11.25786401]
[1766555440304,0.66,121.58,121.54,11.25786401]
[1766555441537,0.66,121.58,121.54,8.52761318]
[1766555441726,0.66,121.58,121.54,11.25786401]
[1766555444734,0.66,121.58,121.55,3.03025083]
[1766555446008,0.66,121.58,121.56,2.73025083]
[1766555446210,0.68,121.6,121.56,2.73025083]
[1766555447441,0.68,121.6,121.56,10.95627217]
[1766555448218,0.68,121.6,121.56,8.22602134]
[1766555448529,0.68,121.6,121.56,10.95627217]
[1766555448725,0.68,121.6,121.57,3.03025083]
[1766555449429,0.68,121.6,121.57,2.73025083]
[1766555450042,0.68,121.6,121.56,11.25627217]
[1766555451442,0.68,121.6,121.57,3.03025083]
[1766555451653,0.68,121.61,121.57,3.03025083]
[1766555452734,0.68,121.61,121.58,2.73025083]
[1766555453535,35.57319121,121.64,121.58,2.73025083]
[1766555453536,0.68,121.64,121.6,13.46792379]
[1766555454130,0.68,121.64,121.6,10.73767296]
[1766555454335,0.68,121.64,121.6,13.46792379]
[1766555454535,0.68,121.64,121.6,13.16792379]
[1766555454737,0.68,121.63,121.6,10.43767296]
[1766555455222,0.68,121.63,121.59,15.02]
[1766555455421,0.68,121.61,121.57,21.69352375]
[1766555455637,6.15910507,121.59,121.55,8.22656216]
[1766555456436,3.42885424,121.59,121.55,10.95681299]
[1766555457348,3.42885424,121.59,121.55,11.63681299]
[1766555457730,0.68,121.58,121.55,11.63681299]
[1766555458248,2.73025083,121.58,121.54,8.22750568]
[1766555458451,0.68,121.57,121.53,34.36585168]
[1766555458637,0.68,121.57,121.53,37.09610251]
[1766555459842,0.68,121.57,121.53,22.07610251]
[1766555460842,8.22586822,121.57,121.44,41.17098003]
[1766555461041,0.68,121.54,121.5,3.41025083]
[1766555461331,3.41025083,121.54,121.5,8.91026255]
[1766555462456,3.41025083,121.54,121.5,11.64051338]
[1766555463151,3.42885424,121.55,121.52,3.41025083]
[1766555464939,3.42885424,121.55,121.52,11.63920016]
[1766555465958,3.42885424,121.55,121.52,10.65726935]
[1766555467528,3.42885424,121.55,121.54,1.74832002]
[1766555468445,3.42885424,121.55,121.53,10.676614]
[1766555470459,0.67,121.6,121.55,0.7]
[1766555470766,0.67,121.6,121.56,1.74832002]
[1766555471264,0.67,121.6,121.57,1.74832002]
[1766555471758,0.67,121.6,121.56,9.97471027]
[1766555473539,2.41832002,121.6,121.55,10.67517377]
[1766555473743,0.67,121.59,121.55,10.67517377]
[1766555473959,0.67,121.59,121.56,10.67441885]
[1766555474264,0.67,121.61,121.57,2.44832002]
[1766555474840,0.67,121.61,121.58,2.44832002]
[1766555475163,0.67,121.61,121.59,1.74832002]
[1766555476656,0.67,121.63,121.59,2.44832002]
[1766555476859,2.41832002,121.63,121.59,2.44832002]
[1766555477038,0.67,121.62,121.59,2.44832002]
[1766555478555,0.67,121.62,121.59,10.67242242]
[1766555479074,0.67,121.63,121.59,10.67242242]
[1766555479265,0.67,121.64,121.6,2.44832002]
[1766555479767,0.67,121.64,121.6,0.7]
[1766555479964,0.67,121.64,121.59,8.9241024]
[1766555480146,0.67,121.63,121.6,1.74832002]
[1766555482357,25.75887587,121.65,121.61,0.7]
[1766555482756,0.67,121.64,121.61,0.7]
[1766555483058,2.41832002,121.64,121.61,0.7]
[1766555483360,0.67,121.64,121.61,1.74832002]
[1766555483548,0.67,121.64,121.6,9.97176627]
[1766555483748,0.67,121.64,121.6,8.92344625]
[1766555484075,0.67,121.63,121.59,10.67252727]
[1766555484574,0.67,121.62,121.56,35.58570023]
[1766555484774,0.67,121.62,121.58,2.44832002]
[1766555485272,0.67,121.62,121.58,0.7]
[1766555485454,0.67,121.62,121.58,2.44832002]
[1766555487484,0.67,121.62,121.58,10.67327097]
[1766555488449,0.67,121.62,121.59,2.44832002]
[1766555488951,0.67,121.62,121.59,10.67230066]
[1766555494780,0.67,121.62,121.59,8.92398064]
[1766555494957,0.67,121.62,121.59,10.67230066]
[1766555505975,0.67,121.62,121.57,20.56327068]
[1766555505976,0.67,121.61,121.57,1.74832002]
[1766555506175,0.67,121.61,121.57,2.46832002]
[1766555507286,0.67,121.61,121.57,10.69359767]
[1766555510491,0.67,121.61,121.57,8.94527765]
[1766555510984,0.67,121.61,121.57,10.69359767]
[1766555511289,0.67,121.61,121.57,8.94527765]
[1766555511484,1.74832002,121.61,121.57,10.69359767]
[1766555511664,0.67,121.6,121.57,10.69359767]
[1766555513386,0.67,121.58,121.55,0.72]
[1766555513778,0.67,121.58,121.54,12.90599298]
[1766555514269,0.67,121.58,121.55,8.22687793]
[1766555514775,0.67,121.58,121.55,9.97519795]
[1766555515368,0.67,121.58,121.55,1.74832002]
[1766555515568,0.67,121.58,121.54,21.13346596]
[1766555516488,0.67,121.58,121.54,19.38514594]
[1766555516696,0.67,121.58,121.55,1.74832002]
[1766555519695,0.67,121.58,121.55,9.9748319]
[1766555520190,0.67,121.58,121.55,10.6948319]
[1766555520396,0.67,121.58,121.55,2.46832002]
[1766555521292,0.67,121.58,121.55,10.69530476]
[1766555522289,0.67,121.58,121.55,8.94698474]
[1766555522494,0.67,121.58,121.55,10.69530476]
[1766555523597,0.67,121.58,121.55,0.72]
[1766555523901,0.67,121.55,121.5,2.46832002]
[1766555524108,0.67,121.54,121.51,0.72]
[1766555524602,0.67,121.56,121.53,2.46832002]
[1766555525095,0.67,121.56,121.53,1.74832002]
[1766555526001,0.67,121.56,121.53,9.97633125]
[1766555526178,0.67,121.56,121.53,10.69633125]
[1766555527393,0.67,121.57,121.54,0.72]
[1766555527694,0.67,121.57,121.54,2.46832002]
[1766555528094,0.67,121.57,121.54,3.45105927]
[1766555528307,0.67,121.57,121.54,11.67872963]
[1766555528804,0.67,121.57,121.54,8.94767036]
[1766555529012,0.67,121.57,121.54,11.67872963]
[1766555532687,0.67,121.57,121.54,3.45105927]
[1766555532889,0.67,121.57,121.54,2.73105927]
[1766555533402,0.67,121.57,121.54,3.45105927]
[1766555533898,10.95485487,121.6,121.55,3.45105927]
[1766555534122,0.67,121.59,121.55,3.45105927]
[1766555534815,0.67,121.59,121.55,11.67787741]
[1766555535890,3.40105927,121.57,121.52,13.68591414]
[1766555536203,8.22461795,121.59,121.51,8.94959937]
[1766555536204,2.73105927,121.56,121.51,8.94959937]
[1766555536505,0.67,121.54,121.5,11.68128867]
[1766555539790,0.67,121.54,121.51,0.72]
[1766555539989,8.226379,121.57,121.51,2.73105927]
[1766555540199,0.67,121.56,121.53,3.45105927]
[1766555541992,0.67,121.56,121.53,0.72]
[1766555542312,0.67,121.56,121.53,3.45105927]
[1766555543611,0.67,121.56,121.53,11.67921649]
[1766555544916,0.67,121.56,121.54,2.73105927]
[1766555545110,18.66286744,121.58,121.54,3.45105927]
[1766555545309,0.67,121.57,121.54,3.45105927]
[1766555547218,0.7,121.56,121.52,10.96001113]
[1766555547410,0.7,121.55,121.52,10.96001113]
[1766555548118,0.7,121.55,121.52,11.66001113]
[1766555548292,0.7,121.55,121.52,2.73105927]
[1766555548498,0.7,121.55,121.51,11.66069545]
[1766555551626,0.7,121.54,121.5,26.68130926]
[1766555551821,0.7,121.54,121.5,2.73105927]
[1766555553320,0.7,121.54,121.49,19.36863166]
[1766555553823,0.7,121.54,121.5,3.43105927]
[1766555554139,8.22776302,121.54,121.5,2.73105927]
[1766555554317,0.7,121.53,121.5,2.73105927]
[1766555555125,0.7,121.53,121.49,8.9309587]
[1766555555328,0.7,121.53,121.5,2.73105927]
[1766555556124,0.7,121.53,121.49,11.66201797]
[1766555556936,0.69,121.52,121.48,34.39932248]
[1766555557122,0.69,121.52,121.49,2.73105927]
[1766555559627,0.69,121.52,121.48,19.37932248]
[1766555559822,0.69,121.52,121.49,2.73105927]
[1766555560122,0.69,121.51,121.48,0.71]
[1766555560301,0.69,121.51,121.47,0.71]
[1766555560512,0.69,121.51,121.47,11.67349766]
[1766555560833,0.69,121.5,121.46,2.73105927]
[1766555561016,0.69,121.5,121.46,3.44105927]
[1766555561213,0.69,121.5,121.47,2.73105927]
[1766555561419,0.69,121.5,121.47,11.67347302]
[1766555562509,0.69,121.5,121.47,10.96347302]
[1766555562710,0.69,121.5,121.47,2.73105927]
[1766555565729,0.69,121.5,121.46,3.45105927]
[1766555565914,0.69,121.5,121.46,0.72]
[1766555566227,0.69,121.5,121.44,28.18873223]
[1766555566228,0.69,121.5,121.47,3.45105927]
[1766555567222,0.69,121.5,121.47,8.95208942]
[1766555567422,0.69,121.5,121.47,11.68314869]
[1766555568216,15.68,121.52,121.48,3.45105927]
[1766555568414,15.02,121.52,121.48,3.45105927]
[1766555568716,0.66,121.51,121.48,3.45105927]
[1766555569834,0.66,121.51,121.48,11.68259937]
[1766555570734,0.66,121.51,121.47,2.73105927]
[1766555570935,0.66,121.5,121.47,0.72]
[1766555572440,0.66,121.5,121.47,3.45105927]
[1766555572633,15.68,121.52,121.48,3.45105927]
[1766555572837,15.68,121.52,121.48,11.68255783]
[1766555573545,0.66,121.51,121.48,11.68255783]
[1766555574044,0.66,121.51,121.47,11.68328029]
[1766555574219,0.66,121.5,121.47,8.95222102]
[1766555575045,0.66,121.5,121.46,11.68399126]
[1766555575417,0.66,121.5,121.47,0.72]
[1766555576319,23.24915134,121.52,121.48,3.45105927]
[1766555576320,15.68,121.52,121.48,3.45105927]
[1766555577146,0.66,121.51,121.48,11.68278164]
[1766555579426,0.66,121.51,121.47,8.95244048]
[1766555579730,0.66,121.5,121.47,11.68349975]
[1766555580947,0.66,121.5,121.47,8.95244048]
[1766555581146,8.23059182,121.5,121.46,0.72]
[1766555581321,0.66,121.49,121.46,0.72]
[1766555581957,0.66,121.49,121.45,11.6846682]
[1766555582529,0.66,121.49,121.45,2.73105927]
[1766555583022,0.66,121.49,121.45,3.45105927]
[1766555585745,0.66,121.48,121.45,0.72]
[1766555586425,2.73105927,121.48,121.44,10.43767296]
[1766555586622,0.66,121.47,121.43,11.68604626]
[1766555586822,0.66,121.46,121.42,26.18686476]
[1766555587044,0.66,121.46,121.42,22.30453772]
[1766555587241,0.66,121.46,121.42,11.86686476]
[1766555588449,0.69,121.48,121.42,0.9]
[1766555588749,0.69,121.47,121.43,2.73105927]
[1766555589522,0.69,121.47,121.43,3.43105927]
[1766555589930,0.69,121.47,121.43,2.45092829]
[1766555590949,0.69,121.47,121.44,1.75092829]
[1766555593145,0.69,121.47,121.44,2.45092829]
[1766555593349,0.69,121.47,121.44,10.68518907]
[1766555594554,0.69,121.47,121.44,8.93426078]
[1766555594941,0.69,121.47,121.44,8.23426078]
[1766555595851,0.69,121.48,121.45,2.45092829]
[1766555597751,0.69,121.48,121.45,10.68455978]
[1766555598338,0.69,121.49,121.46,0.7]
[1766555600652,0.69,121.49,121.45,9.98455978]
[1766555600958,1.75092829,121.48,121.44,0.7]
[1766555601159,0.69,121.47,121.44,0.7]
[1766555601669,0.69,121.47,121.44,2.45092829]
[1766555603753,9.98263403,121.49,121.44,1.75092829]
[1766555603960,0.69,121.49,121.46,0.7]
[1766555605158,35.45863358,121.51,121.46,10.68405307]
[1766555605457,0.69,121.5,121.47,0.7]
[1766555612871,0.69,121.5,121.47,8.93233321]
[1766555613051,15.73,121.51,121.48,0.7]
[1766555613973,0.69,121.5,121.47,8.93233321]
[1766555614272,0.69,121.5,121.47,0.7]
[1766555614571,8.22932569,121.52,121.47,0.7]
[1766555614869,0.69,121.52,121.48,2.45092829]
[1766555615370,0.69,121.52,121.49,0.68]
[1766555615948,15.04,121.53,121.49,1.75092829]
[1766555616144,15.72,121.53,121.5,0.68]
[1766555616491,15.04,121.53,121.49,1.75092829]
[1766555616780,0.68,121.51,121.48,0.68]
[1766555616986,1.75092829,121.52,121.49,0.66]
[1766555616987,0.67,121.52,121.49,0.66]
[1766555617150,0.67,121.52,121.49,2.41092829]
[1766555619859,0.67,121.53,121.5,0.66]
[1766555621779,0.67,121.55,121.51,2.41092829]
[1766555624382,0.67,121.55,121.51,10.64067228]
[1766555624561,0.67,121.55,121.52,0.66]
[1766555624874,0.67,121.56,121.52,2.41092829]
[1766555625083,0.67,121.56,121.53,0.66]
[1766555626388,0.67,121.57,121.54,0.66]
[1766555628081,0.67,121.57,121.54,10.63839738]
[1766555628267,15.71,121.58,121.55,0.66]
[1766555628961,15.71,121.58,121.55,10.63798899]
[1766555629156,110.9243053,121.6,121.55,10.63798899]
[1766555629372,15.69,121.6,121.56,2.41092829]
[1766555629581,2.42092829,121.59,121.56,0.66]
[1766555629884,0.67,121.58,121.55,10.63798899]
[1766555630056,0.67,121.59,121.56,0.66]
[1766555630787,0.67,121.57,121.54,10.63844397]
[1766555631083,0.67,121.57,121.54,0.66]
[1766555631377,0.67,121.57,121.54,2.41092829]
[1766555631585,0.67,121.57,121.54,0.66]
[1766555631989,0.67,121.57,121.54,10.63832682]
[1766555632172,0.67,121.58,121.54,10.63832682]
[1766555633474,0.67,121.6,121.56,2.41092829]
[1766555634683,1.75092829,121.6,121.56,0.66]
[1766555634888,0.67,121.58,121.54,10.63842638]
[1766555635072,0.67,121.57,121.53,10.6391471]
[1766555637362,0.67,121.57,121.54,1.75092829]
[1766555637566,0.67,121.57,121.54,2.41092829]
[1766555637775,0.67,121.59,121.55,1.75092829]
[1766555640073,0.67,121.59,121.56,0.66]
[1766555640274,0.67,121.59,121.55,0.66]
[1766555640595,0.67,121.59,121.55,2.41092829]
[1766555640778,9.97546351,121.59,121.53,8.22833434]
[1766555640979,0.67,121.58,121.54,1.75092829]
[1766555641201,0.67,121.58,121.54,2.41092829]
[1766555641500,0.67,121.57,121.54,0.66]
[1766555643498,0.67,121.57,121.54,2.41092829]
[1766555645395,0.67,121.57,121.54,0.66]
[1766555645600,0.67,121.57,121.53,1.75092829]
[1766555645773,0.67,121.57,121.53,2.41092829]
[1766555646497,8.22575886,121.57,121.53,0.66]
[1766555646724,0.67,121.55,121.52,10.64002638]
[1766555648075,0.65,121.56,121.52,10.65002638]
[1766555649395,0.65,121.56,121.53,0.67]
[1766555652206,0.65,121.56,121.53,11.63012041]
[1766555653210,0.65,121.56,121.53,8.89840381]
[1766555653509,0.65,121.56,121.53,11.63012041]
[1766555653708,0.65,121.56,121.53,8.89840381]
[1766555658908,0.65,121.56,121.53,11.63012041]
[1766555660313,0.65,121.56,121.53,3.4017166]
[1766555661015,0.65,121.56,121.53,11.62997935]
[1766555661407,0.65,121.56,121.53,8.89826275]
[1766555664811,0.65,121.56,121.52,10.96067766]
[1766555665011,0.65,121.56,121.52,11.63067766]
[1766555665813,0.65,121.56,121.53,0.67]
[1766555668508,0.65,121.56,121.53,11.63005246]
[1766555669817,0.65,121.56,121.53,10.96005246]
[1766555670024,0.65,121.57,121.54,0.67]
[1766555670314,0.65,121.57,121.54,11.62942123]
[1766555670618,0.65,121.59,121.56,2.7317166]
[1766555670799,0.65,121.59,121.56,3.4017166]
[1766555672022,0.65,121.57,121.54,8.89770463]
[1766555672320,0.65,121.57,121.54,11.62942123]
[1766555672519,0.65,121.57,121.54,0.67]
[1766555674326,2.7317166,121.57,121.53,10.95989896]
[1766555674528,2.7317166,121.57,121.53,11.62989896]
[1766555674529,0.65,121.56,121.53,11.62989896]
[1766555675101,0.65,121.56,121.53,0.67]
[1766555675301,0.65,121.56,121.52,8.22884044]
[1766555675302,0.67,121.55,121.51,3.4217166]
[1766555675503,0.67,121.54,121.51,0.69]
[1766555677724,2.7317166,121.53,121.49,11.11767296]
[1766555677946,3.4517166,121.52,121.49,0.68]
[1766555678304,0.72,121.52,121.49,0.68]
[1766555680222,0.72,121.52,121.49,8.91108816]
[1766555680623,0.72,121.52,121.49,11.64280476]
[1766555681820,0.72,121.52,121.49,8.91108816]
[1766555682119,0.72,121.52,121.49,11.64280476]
[1766555683119,0.72,121.51,121.48,8.91168896]
[1766555683429,0.72,121.5,121.47,10.96404488]
[1766555683618,0.72,121.5,121.47,11.64404488]
[1766555683821,0.72,121.5,121.48,0.68]
[1766555684719,0.72,121.5,121.47,8.91232828]
[1766555684920,0.72,121.5,121.47,11.64404488]
[1766555685535,3.4517166,121.51,121.48,0.68]
[1766555686430,0.72,121.51,121.48,0.68]
[1766555686745,0.72,121.5,121.47,8.23232828]
[1766555686940,0.72,121.5,121.47,8.91232828]
[1766555691133,0.72,121.5,121.47,0.68]
[1766555691310,0.72,121.5,121.47,8.23227251]
[1766555691514,0.72,121.51,121.48,0.68]
[1766555692039,0.72,121.51,121.47,8.91227251]
[1766555692227,0.72,121.51,121.47,11.64398911]
[1766555694842,0.72,121.5,121.47,8.91227251]
[1766555695136,0.72,121.49,121.46,8.23308613]
[1766555695341,3.4517166,121.49,121.45,22.08312619]
[1766555695636,0.72,121.48,121.45,0.68]
[1766555696237,8.23048765,121.5,121.45,10.96554723]
[1766555696538,0.72,121.49,121.46,0.68]
[1766555696916,0.72,121.49,121.46,8.91297587]
[1766555698349,0.72,121.51,121.48,3.4117166]
[1766555700541,0.72,121.51,121.49,3.4117166]
[1766555700712,15.02,121.52,121.49,3.4117166]
[1766555700919,15.74,121.52,121.49,3.4117166]
[1766555701418,15.74,121.52,121.49,0.68]
[1766555701840,0.72,121.51,121.48,11.64351616]
[1766555702846,0.72,121.51,121.46,8.23279851]
[1766555703145,0.72,121.51,121.47,3.4117166]
[1766555705641,0.72,121.51,121.47,0.68]
[1766555705846,0.72,121.51,121.47,3.4117166]
[1766555709646,0.72,121.51,121.47,11.64393035]
[1766555710650,0.72,121.51,121.47,3.4117166]
[1766555711651,39.73271469,121.52,121.48,0.65]
[1766555711833,0.72,121.51,121.48,3.3817166]
[1766555712028,0.72,121.51,121.48,2.39965291]
[1766555712349,0.72,121.51,121.47,10.632126]
[1766555713860,0.72,121.51,121.48,0.65]
[1766555714947,0.72,121.51,121.48,2.39965291]
[1766555715348,0.72,121.52,121.49,2.39965291]
[1766555716730,1.74965291,121.52,121.48,1.74965291]
[1766555716925,0.72,121.51,121.48,2.39965291]
[1766555718662,0.72,121.51,121.48,0.65]
[1766555718960,0.72,121.51,121.46,2.39965291]
[1766555718961,1.74965291,121.5,121.46,2.39965291]
[1766555719147,0.72,121.49,121.46,0.65]
[1766555721055,0.72,121.48,121.45,9.98302635]
[1766555721260,0.72,121.48,121.45,2.39965291]
[1766555721943,2e-08,121.49,121.45,2.39965291]
[1766555722347,2e-08,121.49,121.45,0.65]
[1766555722546,2e-08,121.49,121.45,2.39965291]
[1766555722960,2e-08,121.49,121.45,0.65]
[1766555724047,0.72,121.48,121.45,0.65]
[1766555727059,0.72,121.48,121.45,8.88383754]
[1766555727267,0.72,121.48,121.46,0.65]
[1766555727768,0.72000002,121.49,121.46,0.65]
[1766555728064,0.72,121.49,121.46,0.65]
[1766555729162,1.74965291,121.48,121.45,0.65]
[1766555729344,2.46965291,121.48,121.45,0.65]
[1766555729945,0.72,121.47,121.45,0.65]
[1766555736665,0.72,121.47,121.44,0.67]
[1766555739177,0.72,121.47,121.44,8.90445918]
[1766555740973,0.72,121.47,121.45,0.7]
[1766555741473,0.7,121.48,121.45,8.93368359]
[1766555748976,0.7,121.48,121.45,8.23368359]
[1766555749179,0.7,121.48,121.46,0.7]
[1766555753576,0.7,121.48,121.44,9.98391704]
[1766555753789,0.7,121.48,121.45,0.7]
[1766555754377,2.44965291,121.48,121.45,0.7]
[1766555754582,0.7,121.46,121.43,8.93514263]
[1766555754777,2.44965291,121.47,121.44,0.7]
[1766555756092,0.7,121.46,121.42,10.63767296]
[1766555756267,0.7,121.45,121.42,0.9]
[1766555757290,0.7,121.45,121.42,0.2]
[1766555757585,0.7,121.45,121.42,0.9]
[1766555759572,2.44965291,121.45,121.42,0.9]
[1766555759780,0.7,121.43,121.42,0.2]
[1766555759980,2.44965291,121.44,121.42,0.2]
[1766555760191,0.7,121.43,121.42,0.2]
[1766555761787,0.7,121.46,121.43,0.7]
[1766555762965,0.7,121.46,121.44,0.7]
[1766555764072,0.7,121.46,121.43,0.7]
[1766555765282,0.7,121.45,121.42,0.9]
[1766555765883,0.7,121.45,121.42,9.13578923]
[1766555766085,0.7,121.46,121.43,0.7]
[1766555767390,2.40965291,121.47,121.43,0.7]
[1766555767588,0.66,121.47,121.44,0.7]
[1766555769699,0.66,121.46,121.44,0.7]
[1766555770079,0.66,121.46,121.43,0.7]
[1766555770287,0.66,121.45,121.43,0.7]
[1766555770695,0.66,121.45,121.42,8.43567769]
[1766555770903,0.66,121.45,121.42,9.13567769]
[1766555771502,0.66,121.45,121.42,0.9]
[1766555774122,0.66,121.45,121.42,9.13583415]
[1766555774366,0.66,121.45,121.42,8.43583415]
[1766555775005,3.39665843,121.45,121.42,8.43583415]
[1766555775419,2.73665843,121.45,121.42,8.43583415]
[1766555775625,0.66,121.44,121.42,8.43583415]
[1766555775925,0.66,121.44,121.42,0.2]
[1766555777115,2.73665843,121.44,121.42,0.2]
[1766555777420,0.66,121.43,121.42,0.2]
[1766555777625,2.73665843,121.44,121.42,0.2]
[1766555777795,0.66,121.43,121.42,0.2]
[1766555778196,3.39665843,121.44,121.42,0.2]
[1766555778404,0.66,121.44,121.42,0.2]
[1766555778806,0.66,121.43,121.41,0.2]
[1766555779006,0.66,121.43,121.41,9.13648003]
[1766555779930,3.39665843,121.45,121.41,9.13648003]
[1766555780318,0.66,121.44,121.41,9.13648003]
[1766555782828,0.66,121.45,121.42,0.7]
[1766555784418,0.66,121.45,121.42,8.93578247]
[1766555787329,0.66,121.5,121.43,0.7]
[1766555787509,3.39665843,121.5,121.46,0.7]
[1766555787710,3.39665843,121.48,121.44,25.41475058]
[1766555787929,3.39665843,121.48,121.45,0.7]
[1766555788240,8.23055094,121.5,121.43,0.7]
[1766555788241,0.66,121.46,121.43,0.7]
[1766555788732,0.66,121.46,121.44,0.7]
[1766555789327,2.73665843,121.47,121.44,0.7]
[1766555789545,3.39665843,121.47,121.44,0.7]
[1766555790419,0.66,121.47,121.44,0.7]
[1766555791654,0.66,121.47,121.44,8.93449668]
[1766555797541,0.66,121.47,121.44,0.7]
[1766555800672,0.69,121.46,121.43,8.91497533]
[1766555801232,0.69,121.46,121.41,25.67767296]
[1766555801233,2.73665843,121.46,121.41,33.90961895]
[1766555801450,0.69,121.45,121.41,37.33046594]
[1766555801635,0.69,121.45,121.42,0.68]
[1766555803436,10.96931485,121.47,121.43,0.68]
[1766555803641,3.42665843,121.47,121.43,0.68]
[1766555803843,0.69,121.46,121.43,0.68]
[1766555804875,0.69,121.46,121.43,8.91518881]
[1766555807857,0.69,121.46,121.43,8.23518881]
[1766555808057,2.73665843,121.47,121.44,0.68]
[1766555808256,0.69,121.47,121.44,0.68]
[1766555814050,10.96806379,121.49,121.44,8.23449176]
[1766555814255,0.69,121.48,121.45,0.68]
[1766555816776,3.42665843,121.48,121.45,0.68]
[1766555819481,0.69,121.48,121.45,0.68]
[1766555819684,3.42665843,121.48,121.45,0.68]
[1766555820666,0.69,121.48,121.45,0.68]
[1766555820973,2.73665843,121.48,121.45,0.68]
[1766555821176,0.69,121.47,121.45,0.68]